Workbook

Sheet Cover
C3: Fleet Technology General TCO Model, Version 1.0
C5: Released October 3, 2012
C6: RD.12/412001.1
D10: This model is available for the user’s individual preliminary analysis alone and may not be copied or
D11: duplicated for any commercial purpose
D12: Users of this spreadsheet model are responsible for ensuring validity of results and any appropriate quality checking. End users and purchasers should not rely solely on the data in this model for purchasing decisions. Ricardo Inc. and its affiliates, officers, and employees will have no liability to any third party for an claims whatsoever arising or relating to the data or analysis
D15: Ricardo provides no warranties nor guarantees on the accuracy of the data or analysis.
D17: Model Description:
D18: This model allows users to conduct a preliminary analysis of the total cost of ownership (TCO) for Diesel, Natural Gas, and Natural Gas Hybrid Commercial Vehicles. An approximate TCO can be calculated for a single vehicle within specified vehicle segment as well as for a fleet made up of multiple vehicles from one or more segments.
D20: Fuel Economy Note:
D21: The model has pre-set fuel economy values for each vehicle segment and technology. Actual fuel economy will vary significantly based on vehicle characteristics and duty cycle. Users should independently evaluate their assumptions on fuel economy and use measured values whenever possible.
D25: Fuel Price Note:
D26: Fuel price values come from EIA and Clean Cities Alternative Fuel Price Reports. These prices reflect 2012 fuel prices and should be checked against current fuel pricing when the model is used.
D29: Vehicle CAPEX Note:
D30: The model includes a pre-set price estimating model for vehicle costs. For natural gas vehicles this model includes: up charges for CNG/LNG tanks, fuel system components, NG capable engines, and based on whether or not SI technology is used there are discount for the removal of emission components. For Class 3 vehicles there is an additional discount because CNG vehicles in this class are typically based on lower cost gasoline platforms, reducing the premium for these vehicles versus an equivalent class 3 diesel. For hybrid vehicles, additional costs are included for power electronics, systems integration, and the battery pack.
D34: This Vehicle CAPEX is illustrative to enable comparative cost comparisons. Actual vehicle prices and availability may vary significantly. Users should validate prices with dealers

Sheet Model
D1: Legend
D2: Input | E2: Suggestion Input
D3: Calculation | E3: Suggestion Calculation
D4: N/A | E4: Optional Input
V5: =IF(W78>120000,"Natural gas consumption is high enough that in house infrastructure may offer fuel cost savings", "") -> 
B7: Vehicle Segment | D7: Class 3 | G7: Class 4-6 | J7: Class 7-8 | M7: Class 6 | P7: Class 8 | S7: Custom | V7: Total Fleet
D8: Delivery | G8: Delivery | J8: Delivery | M8: Work Truck | P8: Intercity | S8: Custom
B9: Powertrain | D9: Diesel | E9: Natural Gas | F9: NG Hybrid | G9: Diesel | H9: Natural Gas | I9: NG Hybrid | J9: Diesel | K9: Natural Gas | L9: NG Hybrid | M9: Diesel | N9: Natural Gas | O9: NG Hybrid | P9: Diesel | Q9: Natural Gas | R9: NG Hybrid | S9: Diesel | T9: Natural Gas | U9: NG Hybrid | V9: Diesel | W9: Natural Gas | X9: NG Hybrid
B10: Single Vehicle Lifetime TCO | C10: $/Vehicle Life | D10: =IF(D15=0,0,D39+D47/D15+D86) -> 61706.34657 | E10: =IF(D15=0,0,E39+E47/D15+E86) -> 62613.9812 | F10: =IF(D15=0,0,F39+F47/D15+F86) -> 70405.50427 | G10: =IF(G15=0,0,G39+G47/G15+G86) -> 129421.4407 | H10: =IF(G15=0,0,H39+H47/G15+H86) -> 140301.4728 | I10: =IF(G15=0,0,I39+I47/G15+I86) -> 159461.3291 | J10: =IF(J15=0,0,J39+J47/J15+J86) -> 191011.3763 | K10: =IF(J15=0,0,K39+K47/J15+K86) -> 209127.8282 | L10: =IF(J15=0,0,L39+L47/J15+L86) -> 227379.5697 | M10: =IF(M15=0,0,M39+M47/M15+M86) -> 322365.1457 | N10: =IF(M15=0,0,N39+N47/M15+N86) -> 345902.1731 | P10: =IF(P15=0,0,P39+P47/P15+P86) -> 294776.7122 | Q10: =IF(P15=0,0,Q39+Q47/P15+Q86) -> 384278.0752 | R10: =IF(P15=0,0,R39+R47/P15+R86) -> 370740.7228 | S10: =IF(S15=0,0,S39+S47/S15+S86) -> 0 | T10: =IF(S15=0,0,T39+T47/S15+T86) -> 0 | U10: =IF(S15=0,0,U39+U47/S15+U86) -> 0
B11: Segment TCO | C11: $/Vehicle Life | D11: =D49+D87 -> 617063.4657 | E11: 626139.812 | F11: 704055.0427 | G11: 129421.4407 | H11: 140301.4728 | I11: 159461.3291 | J11: 191011.3763 | K11: 209127.8282 | L11: 227379.5697 | M11: 322365.1457 | N11: 345902.1731 | P11: =P49+P87 -> 294776.7122 | Q11: 384278.0752 | R11: 370740.7228 | S11: 0 | T11: 0 | U11: 0 | V11: =D11+G11+J11+M11+P11+S11 -> 1554638.141 | W11: =E11+H11+K11+N11+Q11+T11 -> 1705749.361 | X11: 1461636.664
B12: Single Vehicle Δ with Diesel | D12: =D10-D10 -> 0 | E12: =E10-D10 -> 907.6346348 | F12: =F10-D10 -> 8699.157702 | G12: =G10-G10 -> 0 | H12: =H10-G10 -> 10880.03213 | I12: =I10-G10 -> 30039.88844 | J12: =J10-J10 -> 0 | K12: =K10-J10 -> 18116.45192 | L12: =L10-J10 -> 36368.19335 | M12: =M10-M10 -> 0 | N12: =N10-M10 -> 23537.02744 | P12: =P10-P10 -> 0 | Q12: =Q10-P10 -> 89501.36307 | R12: =R10-P10 -> 75964.0107 | S12: =S10-S10 -> 0 | T12: =T10-S10 -> 0 | U12: =U10-S10 -> 0 | V12: =D12+G12+J12+M12+P12+S12 -> 0 | W12: =E12+H12+K12+N12+Q12+T12 -> 142942.5092 | X12: =F12+I12+L12+O12+R12+U12 -> 151071.2502
B13: Segment Δ with Diesel | D13: =D11-D11 -> 0 | E13: =E11-D11 -> 9076.346348 | F13: =F11-D11 -> 86991.57702 | G13: =G11-G11 -> 0 | H13: =H11-G11 -> 10880.03213 | I13: =I11-G11 -> 30039.88844 | J13: =J11-J11 -> 0 | K13: =K11-J11 -> 18116.45192 | L13: =L11-J11 -> 36368.19335 | M13: =M11-M11 -> 0 | N13: =N11-M11 -> 23537.02744 | P13: =P11-P11 -> 0 | Q13: =Q11-P11 -> 89501.36307 | R13: =R11-P11 -> 75964.0107 | S13: =S11-S11 -> 0 | T13: =T11-S11 -> 0 | U13: =U11-S11 -> 0 | V13: 0 | W13: 151111.2209 | X13: 229363.6695
B14: Payback Period | C14: years | D14: 0 | E14: =IF(D15=0,0,(E49-D49)/(D83-E83)) -> 58.18376719 | F14: =IF(D15=0,0,(F49-D49)/(D83-F83)) -> 9.806597753 | G14: 0 | H14: =IF(G15=0,0,(H49-G49)/(G83-H83)) -> 882.5415566 | I14: =IF(G15=0,0,(I49-G49)/(G83-I83)) -> 25.31672782 | J14: 0 | K14: =IF(J15=0,0,(K49-J49)/(J83-K83)) -> 206.9811681 | L14: =IF(J15=0,0,(L49-J49)/(J83-L83)) -> 27.24123703 | M14: 0 | N14: =IF(M15=0,0,(N49-M49)/(M83-N83)) -> -47.78168228 | P14: 0 | Q14: =IF(P15=0,0,(Q49-P49)/(P83-Q83)) -> -18.78152118 | R14: =IF(P15=0,0,(R49-P49)/(P83-R83)) -> 22.54899707 | S14: 0 | T14: =IF(S15=0,0,(T49-S49)/(S83-T83)) -> 0 | U14: =IF(S15=0,0,(U49-S49)/(S83-U83)) -> 0
B15: Vehicles in this Segment | C15: vehicles | D15: 10 | G15: 1 | J15: 1 | M15: 1 | P15: 1 | S15: 0 | V15: =SUM(D15:U15) -> 14
B16: Vehicle Life/TCO Period | C16: years | D16: 6 | G16: 12 | J16: 12 | M16: 15 | P16: 5 | S16: 1
B17: Miles/Day | C17: miles/day | D17: 71 | G17: 71 | J17: 71 | M17: 71 | P17: 300 | S17: 1 | V17: =D$15*D17+G$15*G17+J$15*J17+M$15*M17+P$15*P17+S$15*S17 -> 1223
B18: Idle Time | C18: hours/day | D18: 0.52 | G18: 0.52 | J18: 0.52 | M18: 6.4 | P18: 4.3 | S18: 1 | V18: =D15*D18+G15*G18+J15*J18+M15*M18+P15*P18+S15*S18 -> 16.94
B19: Days in Use | C19: days/year | D19: 280 | G19: 280 | J19: 280 | M19: 280 | P19: 280 | S19: 1
B20: Annual Mileage | C20: miles/year | D20: =D17*D19 -> 19880 | G20: =G17*G19 -> 19880 | J20: =J17*J19 -> 19880 | M20: =M17*M19 -> 19880 | P20: =P17*P19 -> 84000 | S20: =S17*S19 -> 1 | V20: =D$15*D20+G$15*G20+J$15*J20+M$15*M20+P$15*P20+S$15*S20 -> 342440
B21: Annual Idle Time | C21: hours/year | D21: =D18*D19 -> 145.6 | G21: =G18*G19 -> 145.6 | J21: =J18*J19 -> 145.6 | M21: =M18*M19 -> 1792 | P21: =P18*P19 -> 1204 | S21: =S18*S19 -> 1 | V21: =D$15*D21+G$15*G21+J$15*J21+M$15*M21+P$15*P21+S$15*S21 -> 4743.2
B22: Fuel Type | D22: Diesel | E22: CNG | F22: CNG | G22: Diesel | H22: CNG | I22: CNG | J22: Diesel | K22: CNG | L22: CNG | M22: Diesel | N22: CNG | P22: Diesel | Q22: LNG | R22: LNG | S22: Diesel | T22: CNG | U22: CNG
B23: Engine Technology | E23: SI | F23: SI | H23: SI | I23: SI | K23: SI | L23: SI | N23: SI | Q23: CI | R23: SI | T23: SI | U23: SI
B24: Discount Rate | C24: % | D24: 0.06 | E24: 0.06 | F24: 0.06 | G24: 0.06 | H24: 0.06 | I24: 0.06 | J24: 0.06 | K24: 0.06 | L24: 0.06 | M24: 0.06 | N24: 0.06 | P24: 0.06 | Q24: 0.06 | R24: 0.06 | S24: 0.06 | T24: 0.06 | U24: 0.06
B25: CAPEX - Vehicle
B26: Vehicle Cost | C26: $/vehicle | D26: =ROUND(D27,-3) -> 40000 | E26: =ROUND(E27,-3) -> 41000 | F26: 53000 | G26: 65000 | H26: =ROUND(H27,-3) -> 76000 | I26: =ROUND(I27,-3) -> 108000 | J26: 78000 | K26: =ROUND(K27,-3) -> 97000 | L26: =ROUND(L27,-3) -> 129000 | M26: 140000 | N26: =ROUND(N27,-3) -> 159000 | P26: =ROUND(P27,-3) -> 130000 | Q26: =ROUND(Q27,-3) -> 202000 | R26: =ROUND(R27,-3) -> 221000 | S26: 0 | T26: =ROUND(T27,-3) -> 10000 | U26: =ROUND(U27,-3) -> 24000
B27: Suggested Vehicle Cost | C27: $/vehicle | D27: 40000 | E27: =D27+IF(E22="CNG",10000, IF(E22="LNG", 20000, 10000))+E28*VLOOKUP(E30,$A$106:$E$109,5)+ 1800-12000 -> 41174.62118 | F27: =D27+IF(E22="CNG",10000, IF(E22="LNG", 20000, 10000))+F28*VLOOKUP(F30,$A$106:$E$109,5)+1800+(9000+1000*F31)+2000-12000 -> 53449.1615 | G27: 65000 | H27: =G27+IF(H22="CNG",10000, IF(H22="LNG", 20000, 10000))+H28*VLOOKUP(H30,$A$106:$E$109,5)+ 1800-3000 -> 75633.74615 | I27: =G27+IF(H22="CNG",10000, IF(H22="LNG", 20000, 10000))+I28*VLOOKUP(I30,$A$106:$E$109,5)+1800+(25000+3000*I31)+2000-3000 -> 107763.0081 | J27: 78000 | K27: =J27+IF(K22="CNG",10000, IF(K22="LNG", 20000, 10000))+K28*VLOOKUP(K30,$A$106:$E$109,5)+ 8400-3000 -> 97025.47216 | L27: =J27+IF(K22="CNG",10000, IF(K22="LNG", 20000, 10000))+L28*VLOOKUP(L30,$A$106:$E$109,5)+8400+(25000+3000*L31)+2000-3000 -> 128975.0663 | M27: 140000 | N27: =M27+IF(N22="CNG",10000, IF(N22="LNG", 20000, 10000))+N28*VLOOKUP(N30,$A$106:$E$109,5)+ 8400-3000 -> 158983.6389 | P27: 130000 | Q27: =P27+IF(Q22="CNG",10000,IF(Q22="LNG",20000,10000))+Q28*VLOOKUP(Q30,$A$106:$E$109,5)+IF(Q23="SI",8400,IF(Q23="CI",20000,0))-IF(Q23="CI",0,3000) -> 201510.7018 | R27: =P27+IF(Q22="CNG",10000, IF(Q22="LNG", 20000, 10000))+R28*VLOOKUP(R30,$A$106:$E$108,5)+(25000+3000*R31)+2000+IF(Q23="SI",8400,IF(Q23="CI",20000,0))-IF(Q23="CI",0,3000) -> 220670.6647 | S27: 1 | T27: =S27+10000+T28*VLOOKUP(T30,$A$106:$E$109,5) -> 10490.70588 | U27: =S27+10000+U28*VLOOKUP(U30,$A$106:$E$109,5)+8000*U31+2000 -> 24487.62791
B28: Suggested Tank Size | C28: DGE | E28: =E78/D19*(1+E29) -> 9.164141176 | F28: =F78/D19*(1+F29) -> 7.661076693 | H28: =H78/G19*(1+H29) -> 12.22497433 | I28: =I78/G19*(1+I29) -> 10.42005423 | K28: =K78/J19*(1+K29) -> 24.16981438 | L28: =L78/J19*(1+L29) -> 21.16710891 | N28: =N78/M19*(1+N29) -> 23.89092583 | Q28: =Q78/P19*(1+Q29) -> 70.02378169 | R28: =R78/P19*(1+R29) -> 60.90221582 | T28: =T78/S19*(1+T29) -> 3.264705882 | U28: =U78/S19*(1+U29) -> 3.244186047
B29: Suggested Spare Capacity | C29: % | E29: 0.5 | F29: 0.5 | H29: 0.5 | I29: 0.5 | K29: 0.5 | L29: 0.5 | N29: 0.5 | Q29: 0.5 | R29: 0.5 | T29: 0.5 | U29: 0.5
B30: Suggested Tank Type | C30: 1-4 | E30: 1 | F30: 1 | H30: 1 | I30: 1 | K30: 1 | L30: 1 | N30: 1 | Q30: 4 | R30: 4 | T30: 1 | U30: 1
B31: Suggested Battery Capacity | C31: kWhr | F31: 1.5 | I31: 1.8 | L31: 1.8 | R31: 1.8 | U31: 1.5
B32: Financing Rate | C32: % | D32: 0 | E32: 0 | F32: 0 | G32: 0 | H32: 0 | I32: 0 | J32: 0 | K32: 0 | L32: 0 | M32: 0 | N32: 0 | P32: 0 | Q32: 0 | R32: 0 | S32: 0 | T32: 0 | U32: 0
B33: Financing Term | C33: years | D33: 5 | E33: 5 | F33: 5 | G33: 5 | H33: 5 | I33: 5 | J33: 5 | K33: 5 | L33: 5 | M33: 5 | N33: 5 | P33: 5 | Q33: 5 | R33: 5
B34: Used Vehicle Sale Price | C34: $ in year sold | D34: 15000 | E34: 15000 | F34: 15000 | G34: 22000 | H34: 22000 | I34: 22000 | J34: 40000 | K34: 40000 | L34: 40000 | M34: 16000 | N34: 16000 | P34: 50000 | Q34: 50000 | R34: 50000
B35: Incentives (-) or other costs (+) | C35: $/vehicle | D35: 0 | E35: 0 | F35: 0 | G35: 0 | H35: 0 | I35: 0 | J35: 0 | K35: 0 | L35: 0 | M35: 0 | N35: 0 | P35: 0 | Q35: 0 | R35: 0 | S35: 0 | T35: 0 | U35: 0
B36: PV of Training Related CAPEX | C36: $/vehicle | D36: 0 | E36: 0 | F36: 0 | G36: 0 | H36: 0 | I36: 0 | J36: 0 | K36: 0 | L36: 0 | M36: 0 | N36: 0 | P36: 0 | Q36: 0 | R36: 0 | S36: 0 | T36: 0 | U36: 0
B37: PV of Residual Value | C37: $/vehicle | D37: =D34/(1+D24)^D16 -> 10574.40811 | E37: =E34/(1+E24)^D16 -> 10574.40811 | F37: =F34/(1+F24)^D16 -> 10574.40811 | G37: =G34/(1+G24)^G16 -> 10933.326 | H37: =H34/(1+H24)^G16 -> 10933.326 | I37: =I34/(1+I24)^G16 -> 10933.326 | J37: =J34/(1+J24)^J16 -> 19878.77454 | K37: =K34/(1+K24)^J16 -> 19878.77454 | L37: =L34/(1+L24)^J16 -> 19878.77454 | M37: =M34/(1+M24)^M16 -> 6676.240972 | N37: =N34/(1+N24)^M16 -> 6676.240972 | P37: =P34/(1+P24)^P16 -> 37362.90864 | Q37: =Q34/(1+Q24)^P16 -> 37362.90864 | R37: =R34/(1+R24)^P16 -> 37362.90864 | S37: 0 | T37: 0 | U37: 0 | V37: 0 | W37: 0 | X37: 0
B38: PV of Financing Costs | C38: $/vehicle | D38: =IF(D33=0,0,IF(D32=0,0,PV(D24,D33,-(D26*(1+D32)^D33-D26)/D33))) -> 0 | E38: 0 | F38: 0 | G38: 0 | H38: 0 | I38: 0 | J38: 0 | K38: 0 | L38: 0 | M38: 0 | N38: 0 | P38: =IF(P33=0,0,IF(P32=0,0,PV(P24,P33,-(P26*(1+P32)^P33-P26)/P33))) -> 0 | Q38: 0 | R38: 0 | S38: 0 | T38: 0 | U38: 0 | V38: 0 | W38: 0 | X38: 0
B39: Net Vehicle CAPEX | C39: $/vehicle | D39: =D26+D35+D38-D37+D36 -> 29425.59189 | E39: =E26+E35+E38-E37+E36 -> 30425.59189 | F39: 42425.59189 | G39: 54066.674 | H39: =H26+H35+H38-H37+H36 -> 65066.674 | I39: =I26+I35+I38-I37+I36 -> 97066.674 | J39: 58121.22546 | K39: =K26+K35+K38-K37+K36 -> 77121.22546 | L39: =L26+L35+L38-L37+L36 -> 109121.2255 | M39: 133323.759 | N39: =N26+N35+N38-N37+N36 -> 152323.759 | P39: =P26+P35+P38-P37+P36 -> 92637.09136 | Q39: =Q26+Q35+Q38-Q37+Q36 -> 164637.0914 | R39: =R26+R35+R38-R37+R36 -> 183637.0914 | S39: 0 | T39: =T26+T35+T38-T37+T36 -> 10000 | U39: =U26+U35+U38-U37+U36 -> 24000
B40: Net Segment CAPEX | C40: $ | D40: =D39*D15 -> 294255.9189 | E40: =E39*D15 -> 304255.9189 | F40: =F39*D15 -> 424255.9189 | G40: =G39*G15 -> 54066.674 | H40: =H39*G15 -> 65066.674 | I40: =I39*G15 -> 97066.674 | J40: =J39*J15 -> 58121.22546 | K40: =K39*J15 -> 77121.22546 | L40: =L39*J15 -> 109121.2255 | M40: =M39*M15 -> 133323.759 | N40: =N39*M15 -> 152323.759 | P40: =P39*P15 -> 92637.09136 | Q40: =Q39*P15 -> 164637.0914 | R40: =R39*P15 -> 183637.0914 | S40: =S39*S15 -> 0 | T40: =T39*S15 -> 0 | U40: =U39*S15 -> 0 | V40: =D40+G40+J40+M40+P40+S40 -> 632404.6688 | W40: =E40+H40+K40+N40+Q40+T40 -> 763404.6688 | X40: 814080.9097
B41: CAPEX - Infrastructure
B42: Infrastructure Cost | C42: $ | D42: 0 | E42: 0 | F42: 0 | G42: 0 | H42: 0 | I42: 0 | J42: 0 | K42: 0 | L42: 0 | M42: 0 | N42: 0 | P42: 0 | Q42: 0 | R42: 0 | S42: 0 | T42: 0 | U42: 0 | V42: =D42+G42+J42+M42+P42+S42 -> 0 | W42: =E42+H42+K42+N42+Q42+T42 -> 0 | X42: 0
B43: Infrastructure Financing Rate | C43: % | D43: 0 | E43: 0 | F43: 0 | G43: 0 | H43: 0 | I43: 0 | J43: 0 | K43: 0 | L43: 0 | M43: 0 | N43: 0 | P43: 0 | Q43: 0 | R43: 0 | S43: 0 | T43: 0 | U43: 0
B44: Infrastructure Financing Period | C44: years | D44: 0 | E44: 0 | F44: 0 | G44: 0 | H44: 0 | I44: 0 | J44: 0 | K44: 0 | L44: 0 | M44: 0 | N44: 0 | P44: 0 | Q44: 0 | R44: 0 | S44: 0 | T44: 0 | U44: 0
B45: Incentive (-) or other costs (+) | C45: $
B46: PV of Financing Costs | D46: =IF(D43=0,0,IF(D44=0,0,PV(D24,D44,-(D42*(1+D43)^D44-D42)/D44))) -> 0 | E46: 0 | F46: 0 | G46: 0 | H46: 0 | I46: 0 | J46: 0 | K46: 0 | L46: 0 | M46: 0 | N46: 0 | P46: =IF(P43=0,0,IF(P44=0,0,PV(P24,P44,-(P42*(1+P43)^P44-P42)/P44))) -> 0 | Q46: 0 | R46: 0 | S46: 0 | T46: 0 | U46: 0
B47: Net Infrastructure CAPEX | D47: =D42+D46 -> 0 | E47: =E42+E46 -> 0 | F47: 0 | G47: 0 | H47: 0 | I47: 0 | J47: 0 | K47: 0 | L47: 0 | M47: 0 | N47: 0 | P47: 0 | Q47: 0 | R47: 0 | S47: 0 | T47: 0 | U47: 0 | V47: =D47+G47+J47+M47+P47+S47 -> 0 | W47: =E47+H47+K47+N47+Q47+T47 -> 0 | X47: 0
B48: CAPEX - Total Net
B49: Total Net CAPEX | D49: =D40+D47 -> 294255.9189 | E49: 304255.9189 | F49: 424255.9189 | G49: 54066.674 | H49: 65066.674 | I49: 97066.674 | J49: 58121.22546 | K49: 77121.22546 | L49: 109121.2255 | M49: 133323.759 | N49: 152323.759 | P49: 92637.09136 | Q49: 164637.0914 | R49: 183637.0914 | S49: 0 | T49: 0 | U49: 0 | V49: =D49+G49+J49+M49+P49+S49 -> 632404.6688 | W49: =E49+H49+K49+N49+Q49+T49 -> 763404.6688 | X49: 814080.9097
B50: OPEX - Maintenance
B51: Maintenance Cost | C51: $/mile | D51: 0.076 | E51: 0.089 | F51: 0.058 | G51: 0.095 | H51: 0.11 | I51: 0.067 | J51: 0.11 | K51: 0.13 | L51: 0.11 | M51: 0.28 | N51: 0.3 | P51: 0.052 | Q51: 0.069 | R51: 0.06 | V51: =D51*$D$15+$G$15*G51+J51*$J$15+$M$15*M51+P51*$P$15+$S$15*S51 -> 1.297 | W51: 1.499 | X51: 0.817
B52: Annual Maintenance Training | D52: 0 | E52: 0 | F52: 0 | G52: 0 | H52: 0 | I52: 0 | J52: 0 | K52: 0 | L52: 0 | M52: 0 | N52: 0 | P52: 0 | Q52: 0 | R52: 0 | S52: 0 | T52: 0 | U52: 0
B53: Suggested Maintenance Cost | C53: $/Mile | D53: =SUM(D54:D57) -> 0.076 | E53: =SUM(E54:E57) -> 0.089 | F53: 0.058 | G53: 0.095 | H53: =SUM(H54:H57) -> 0.11 | I53: =SUM(I54:I57) -> 0.067 | J53: 0.11 | K53: =SUM(K54:K57) -> 0.13 | L53: =SUM(L54:L57) -> 0.11 | M53: 0.093 | N53: =SUM(N54:N57) -> 0.112 | P53: =SUM(P54:P57) -> 0.052 | Q53: =SUM(Q54:Q57) -> 0.069 | R53: =SUM(R54:R57) -> 0.06 | S53: =SUM(S54:S57) -> 0 | T53: =SUM(T54:T57) -> 0 | U53: =SUM(U54:U57) -> 0
B54: Suggested Brake Maintenance Cost | C54: $/mile | D54: 0.041 | E54: 0.041 | F54: 0.008 | G54: 0.063 | H54: 0.063 | I54: 0.013 | J54: 0.075 | K54: 0.075 | L54: 0.015 | M54: 0.063 | N54: 0.063 | P54: 0.035 | Q54: 0.035 | R54: 0.007
B55: Suggested Oil Change Maintenance Cost | C55: $/Mile | D55: 0.012 | E55: 0.012 | F55: 0.012 | G55: 0.012 | H55: 0.015 | I55: 0.015 | J55: 0.017 | K55: 0.019 | L55: 0.019 | M55: 0.012 | N55: 0.016 | P55: 0.007 | Q55: 0.011 | R55: 0.011
B56: Suggested Fuel Filter Maintenance Cost | C56: $/mile | D56: 0.01 | E56: 0.007 | F56: 0.007 | G56: 0.007 | H56: 0.003 | I56: 0.003 | J56: 0.005 | K56: 0.001 | L56: 0.001 | M56: 0.005 | N56: 0.004 | P56: 0.005 | Q56: 0.002 | R56: 0.002
B57: Suggested Other Maintenance Costs | C57: $/Mile | D57: 0.013 | E57: 0.029 | F57: 0.031 | G57: 0.013 | H57: 0.029 | I57: 0.036 | J57: 0.013 | K57: 0.035 | L57: 0.075 | M57: 0.013 | N57: 0.029 | P57: 0.005 | Q57: 0.021 | R57: 0.04
B58: Battery Replacement Cost | C58: $ at replacement | F58: 4500 | I58: 5400 | L58: 5400 | R58: 5400 | U58: 4500
B59: Suggested Battery Replacement Cost | C59: $ at replacement | F59: =3000*F31 -> 4500 | I59: =3000*I31 -> 5400 | L59: =3000*L31 -> 5400 | R59: =3000*R31 -> 5400 | U59: =3000*U31 -> 4500
B60: Hybrid Battery Replacement Interval | F60: 8 | I60: 8 | L60: 8 | R60: 8 | U60: 8
B61: Is the battery replaced within the useful life? | F61: =IF(F60>D16,"No","Yes") -> No | I61: =IF(I60>G16,"No","Yes") -> Yes | L61: =IF(L60>J16,"No","Yes") -> Yes | R61: =IF(R60>P16,"No","Yes") -> No | U61: =IF(U60>S16,"No","Yes") -> No
B62: Total Annual Maintenance | C62: $/year | D62: =D51*D20+D52 -> 1510.88 | E62: =E51*D20+E52 -> 1769.32 | F62: =F51*D20+F52 -> 1153.04 | G62: =G51*G20+G52 -> 1888.6 | H62: =H51*G20+H52 -> 2186.8 | I62: =I51*G20+I52 -> 1331.96 | J62: =J51*J20+J52 -> 2186.8 | K62: =K51*J20+K52 -> 2584.4 | L62: =L51*J20+L52 -> 2186.8 | M62: =M51*M20+M52 -> 5566.4 | N62: =N51*M20+N52 -> 5964 | P62: =P51*P20+P52 -> 4368 | Q62: =Q51*P20+Q52 -> 5796 | R62: =R51*P20+R52 -> 5040 | S62: =S51*S20+S52 -> 0 | T62: =T51*S20+T52 -> 0 | U62: =U51*S20+U52 -> 0 | V62: 29118.6 | W62: 34224.4 | X62: 20089.16
B63: PV of Battery Replacement | C63: $/Vehicle Life | F63: =F59/(1+F24)^(F60) -> 2823.355671 | I63: =I59/(1+I24)^(I60) -> 3388.026805 | L63: =L59/(1+L24)^(L60) -> 3388.026805 | R63: =R59/(1+R24)^(R60) -> 3388.026805 | U63: =U59/(1+U24)^(U60) -> 2823.355671
B64: OPEX - Fuel and DEF
B65: Fuel Price | C65: $/DGE | D65: =IF(D22="CNG",$I102,IF(D22="LNG",$J102,IF(D22="Diesel",$E90,"Check Fuel Type"))) -> 3 | E65: 2.467 | F65: 2.467 | G65: 3 | H65: 2.467 | I65: 2.467 | J65: 3 | K65: 2.467 | L65: 2.467 | M65: 3 | N65: 2.467 | P65: =IF(P22="CNG",$I102,IF(P22="LNG",$J102,IF(P22="Diesel",$E90,"Check Fuel Type"))) -> 3 | Q65: 3.05 | R65: 3.05 | S65: 3 | T65: 2.467 | U65: 2.467
B66: Driving Fuel Economy | C66: mile/DGE | D66: =ROUND(D67,2) -> 15 | E66: =ROUND(E67,2) -> 12.75 | F66: 14.03 | G66: 11 | H66: =ROUND(H67,2) -> 9.35 | I66: =ROUND(I67,2) -> 10.29 | J66: 5.4 | K66: =ROUND(K67,2) -> 4.59 | L66: =ROUND(L67,2) -> 5.05 | M66: 9.2 | N66: =ROUND(N67,2) -> 7.82 | P66: =ROUND(P67,2) -> 7.1 | Q66: =ROUND(Q67,2) -> 7.1 | R66: =ROUND(R67,2) -> 7.46 | S66: 1 | T66: =ROUND(T67,2) -> 0.85 | U66: =ROUND(U67,2) -> 0.86
B67: Suggested Driving Fuel Economy | C67: mile/DGE | D67: 15 | E67: =IF(E23="CI",(1+$E114)*D67,IF(E23="SI",(1+$E113)*D67,"Check Engine Type")) -> 12.75 | F67: =IF(F23="CI",(1+F114)*E67,IF(F23="SI",(1+F113)*E67,"Check Engine Type"))*(1+F70) -> 14.025 | G67: 11 | H67: =IF(H23="CI",(1+$E114)*G67,IF(H23="SI",(1+$E113)*G67,"Check Engine Type")) -> 9.35 | I67: =IF(I23="CI",(1+I114)*H67,IF(I23="SI",(1+I113)*H67,"Check Engine Type"))*(1+I70) -> 10.285 | J67: 5.4 | K67: =IF(K23="CI",(1+$E114)*J67,IF(K23="SI",(1+$E113)*J67,"Check Engine Type")) -> 4.59 | L67: =IF(L23="CI",(1+L114)*K67,IF(L23="SI",(1+L113)*K67,"Check Engine Type"))*(1+L70) -> 5.049 | M67: 9.2 | N67: =IF(N23="CI",(1+$E114)*M67,IF(N23="SI",(1+$E113)*M67,"Check Engine Type")) -> 7.82 | P67: 7.1 | Q67: =IF(Q23="CI",(1+$E114)*P67,IF(Q23="SI",(1+$E113)*P67,"Check Engine Type")) -> 7.1 | R67: =IF(R23="CI",(1+R114)*Q67,IF(R23="SI",(1+R113)*Q67,"Check Engine Type"))*(1+R70) -> 7.455 | S67: 1 | T67: =IF(T23="CI",(1+$E114)*S67,IF(T23="SI",(1+$E113)*S67,"Check Engine Type")) -> 0.85 | U67: =IF(U23="CI",(1+U114)*T67,IF(U23="SI",(1+U113)*T67,"Check Engine Type"))*(1+U70) -> 0.8585
B68: Hybrid Vehicle Drive Cycle Selector | C68: 1-4 | F68: 2 | I68: 2 | L68: 2 | R68: 3 | U68: 4
B69: Selected Drive cycle | F69: =VLOOKUP(F68,$A$118:$E$121, 2) -> Suburban Drive Cycle | I69: =VLOOKUP(I68,$A$118:$E$121, 2) -> Suburban Drive Cycle | L69: =VLOOKUP(L68,$A$118:$E$121, 2) -> Suburban Drive Cycle | R69: =VLOOKUP(R68,$A$118:$E$121, 2) -> Rural Drive Cycle | U69: =VLOOKUP(U68,$A$118:$E$121, 2) -> Intercity
B70: Hybrid Fuel Economy Improvement | C70: mile/DGE | F70: =VLOOKUP(F68,$A$118:$E$121,5) -> 0.1 | I70: =VLOOKUP(I68,$A$118:$E$121,5) -> 0.1 | L70: =VLOOKUP(L68,$A$118:$E$121,5) -> 0.1 | R70: =VLOOKUP(R68,$A$118:$E$121,5) -> 0.05 | U70: =VLOOKUP(U68,$A$118:$E$121,5) -> 0.01
B71: Idle Fuel Consumption | C71: DGE/hour | D71: 0.79 | E71: 1.04 | F71: 0.09 | G71: 0.81 | H71: 1.07 | I71: 0.09 | J71: 0.94 | K71: 1.24 | L71: 0.1 | M71: 0.81 | N71: 1.07 | P71: 1.03 | Q71: 1.03 | R71: 0.09 | S71: 1 | T71: 1 | U71: 1
B72: DEF Economy | C72: mpg | D72: 330 | E72: 0 | F72: 0 | G72: 350 | H72: 0 | I72: 0 | J72: 350 | K72: 0 | L72: 0 | M72: 350 | N72: 0 | P72: 350 | Q72: 700 | R72: 700 | S72: 0 | T72: 0 | U72: 0
B73: DEF Price | C73: $/gallon | D73: 2.9 | E73: 2.9 | F73: 2.9 | G73: 2.9 | H73: 2.9 | I73: 2.9 | J73: 2.9 | K73: 2.9 | L73: 2.9 | M73: 2.9 | N73: 2.9 | P73: 2.9 | Q73: 2.9 | R73: 2.9 | S73: 2.9 | T73: 2.9 | U73: 2.9
B74: Other Vehicle OPEX | C74: $/year | Q74: 2100 | R74: 180 | V74: =D74*$D$15+$G$15*G74+J74*$J$15+$M$15*M74+P74*$P$15+$S$15*S74 -> 0 | W74: =E74*$D$15+$G$15*H74+K74*$J$15+$M$15*N74+Q74*$P$15+$S$15*T74 -> 2100 | X74: =F74*$D$15+$G$15*I74+L74*$J$15+$M$15*O74+R74*$P$15+$S$15*U74 -> 180
B75: Infrastructure related OPEX | C75: $/year | V75: =D75*$D32+$G32*G75+J75*$J32+$M32*M75+P75*$P32+$S32*S75 -> 0 | W75: =E75*$D32+$G32*H75+K75*$J32+$M32*N75+Q75*$P32+$S32*T75 -> 0 | X75: =F75*$D32+$G32*I75+L75*$J32+$M32*O75+R75*$P32+$S32*U75 -> 0
B76: Vehicle Driving Fuel Consumption | C76: DGE/year | D76: =D20/D66 -> 1325.333333 | E76: =D20/E66 -> 1559.215686 | F76: =D20/F66 -> 1416.963649 | G76: =G20/G66 -> 1807.272727 | H76: =G20/H66 -> 2126.203209 | I76: =G20/I66 -> 1931.972789 | J76: =J20/J66 -> 3681.481481 | K76: =J20/K66 -> 4331.154684 | L76: =J20/L66 -> 3936.633663 | M76: =M20/M66 -> 2160.869565 | N76: =M20/N66 -> 2542.199488 | P76: =P20/P66 -> 11830.98592 | Q76: =P20/Q66 -> 11830.98592 | R76: =P20/R66 -> 11260.05362 | S76: =S20/S66 -> 1 | T76: =S20/T66 -> 1.176470588 | U76: =S20/U66 -> 1.162790698 | V76: =D76*$D$15+$G$15*G76+J76*$J$15+$M$15*M76+P76*$P$15+$S$15*S76 -> 32733.94302 | W76: 36422.70016 | X76: 31298.29657
B77: Vehicle Idle Fuel Consumption | C77: DGE/year | D77: =D71*D21 -> 115.024 | E77: =E71*D21 -> 151.424 | F77: =F71*D21 -> 13.104 | G77: =G71*G21 -> 117.936 | H77: =H71*G21 -> 155.792 | I77: =I71*G21 -> 13.104 | J77: =J71*J21 -> 136.864 | K77: =K71*J21 -> 180.544 | L77: =L71*J21 -> 14.56 | M77: =M71*M21 -> 1451.52 | N77: =N71*M21 -> 1917.44 | P77: =P71*P21 -> 1240.12 | Q77: =Q71*P21 -> 1240.12 | R77: =R71*P21 -> 108.36 | S77: =S71*S21 -> 1 | T77: =T71*S21 -> 1 | U77: =U71*S21 -> 1 | V77: 4096.68 | W77: 5008.136 | X77: 267.064
B78: Vehicle Total Fuel Consumption | C78: DGE/year | D78: =D77+D76 -> 1440.357333 | E78: =E77+E76 -> 1710.639686 | F78: 1430.067649 | G78: 1925.208727 | H78: 2281.995209 | I78: 1945.076789 | J78: 3818.345481 | K78: 4511.698684 | L78: 3951.193663 | M78: 3612.389565 | N78: 4459.639488 | P78: 13071.10592 | Q78: 13071.10592 | R78: 11368.41362 | S78: 2 | T78: 2.176470588 | U78: 2.162790698 | V78: 36830.62302 | W78: 41430.83616 | X78: 31565.36057
B79: Annual Vehicle Fuel Cost | C79: $/year | D79: =D78*D65 -> 4321.072 | E79: 4220.148106 | F79: 3527.976891 | G79: 5775.626182 | H79: 5629.68218 | I79: 4798.504439 | J79: 11455.03644 | K79: 11130.36065 | L79: 9747.594768 | M79: 10837.1687 | N79: 11001.93062 | P79: 39213.31775 | Q79: 39866.87304 | R79: 34673.66154 | S79: 6 | T79: 5.369352941 | U79: 5.335604651 | V79: =D79*$D$15+$G$15*G79+J79*$J$15+$M$15*M79+P79*$P$15+$S$15*S79 -> 110491.8691 | W79: 109830.3276 | X79: 84499.52965
B80: Vehicle DEF Consumption | C80: gallon/year | D80: =IF(D72=0,0,D20/D72) -> 60.24242424 | E80: =IF(E72=0,0,D20/E72) -> 0 | F80: =IF(F72=0,0,D20/F72) -> 0 | G80: =IF(G72=0,0,G20/G72) -> 56.8 | H80: =IF(H72=0,0,G20/H72) -> 0 | I80: =IF(I72=0,0,G20/I72) -> 0 | J80: =IF(J72=0,0,J20/J72) -> 56.8 | K80: =IF(K72=0,0,J20/K72) -> 0 | L80: =IF(L72=0,0,J20/L72) -> 0 | M80: =IF(M72=0,0,M20/M72) -> 56.8 | N80: =IF(N72=0,0,M20/N72) -> 0 | P80: =IF(P72=0,0,P20/P72) -> 240 | Q80: =IF(Q72=0,0,P20/Q72) -> 120 | R80: =IF(R72=0,0,P20/R72) -> 120 | S80: =IF(S72=0,0,S20/S72) -> 0 | T80: =IF(T72=0,0,S20/T72) -> 0 | U80: =IF(U72=0,0,S20/U72) -> 0 | V80: 1012.824242 | W80: 120 | X80: 120
B81: Annual Vehicle DEF Cost | C81: $/year | D81: =D73*D80 -> 174.7030303 | E81: 0 | F81: 0 | G81: 164.72 | H81: 0 | I81: 0 | J81: 164.72 | K81: 0 | L81: 0 | M81: 164.72 | N81: 0 | P81: 696 | Q81: 348 | R81: 348 | S81: 0 | T81: 0 | U81: 0 | V81: 0 | W81: 0 | X81: 0
B82: Total Vehicle Annual OPEX | C82: $/year | D82: =D62+D79+D81+D74+D75 -> 6006.65503 | E82: 5989.468106 | F82: 4681.016891 | G82: 7828.946182 | H82: 7816.48218 | I82: 6130.464439 | J82: 13806.55644 | K82: 13714.76065 | L82: 11934.39477 | M82: 16568.2887 | N82: 16965.93062 | P82: 44277.31775 | Q82: 48110.87304 | R82: 40241.66154 | S82: 6 | T82: 5.369352941 | U82: 5.335604651 | V82: 139610.4691 | W82: 146154.7276 | X82: 104768.6897
B83: Total Segment Annual OPEX | D83: =D82*D15 -> 60066.5503 | E83: =E82*D15 -> 59894.68106 | F83: =F82*D15 -> 46810.16891 | G83: =G82*G15 -> 7828.946182 | H83: =H82*G15 -> 7816.48218 | I83: =I82*G15 -> 6130.464439 | J83: =J82*J15 -> 13806.55644 | K83: =K82*J15 -> 13714.76065 | L83: =L82*J15 -> 11934.39477 | M83: =M82*M15 -> 16568.2887 | N83: =N82*M15 -> 16965.93062 | P83: =P82*P15 -> 44277.31775 | Q83: =Q82*P15 -> 48110.87304 | R83: =R82*P15 -> 40241.66154 | S83: =S82*S15 -> 0 | T83: =T82*S15 -> 0 | U83: =U82*S15 -> 0 | V83: =V82*V15 -> 1954546.567 | W83: =W82*V15 -> 2046166.186 | X83: =X82*V15 -> 1466761.655
B84: OPEX Inflation | C84: % | D84: 0.02 | E84: 0.02 | F84: 0.02 | G84: 0.02 | H84: 0.02 | I84: 0.02 | J84: 0.02 | K84: 0.02 | L84: 0.02 | M84: 0.02 | N84: 0.02 | P84: 0.02 | Q84: 0.02 | R84: 0.02
B85: OPEX - Fuel and DEF
B86: Total Vehicle OPEX | C86: $ | D86: =D82+D82/(D24-D84)*(1-((1+D84)/(1+D24))^(D16-1)) -> 32280.75468 | E86: =E82+E82/(E24-E84)*(1-((1+E84)/(1+E24))^(D16-1)) -> 32188.38931 | F86: =F82+F82/(F24-F84)*(1-((1+F84)/(1+F24))^(D16-1))+F63 -> 27979.91238 | G86: =G82+G82/(G24-G84)*(1-((1+G84)/(1+G24))^(G16-1)) -> 75354.76665 | H86: =H82+H82/(H24-H84)*(1-((1+H84)/(1+H24))^(G16-1)) -> 75234.79878 | I86: =I82+I82/(I24-I84)*(1-((1+I84)/(1+I24))^(G16-1))+I63 -> 62394.65509 | J86: =J82+J82/(J24-J84)*(1-((1+J84)/(1+J24))^(J16-1)) -> 132890.1509 | K86: =K82+K82/(K24-K84)*(1-((1+K84)/(1+K24))^(J16-1)) -> 132006.6028 | L86: =L82+L82/(L24-L84)*(1-((1+L84)/(1+L24))^(J16-1))+L63 -> 118258.3442 | M86: =M82+M82/(M24-M84)*(1-((1+M84)/(1+M24))^(M16-1)) -> 189041.3867 | N86: =N82+N82/(N24-N84)*(1-((1+N84)/(1+N24))^(M16-1)) -> 193578.4141 | P86: =P82+P82/(P24-P84)*(1-((1+P84)/(1+P24))^(P16-1)) -> 202139.6208 | Q86: =Q82+Q82/(Q24-Q84)*(1-((1+Q84)/(1+Q24))^(P16-1)) -> 219640.9839 | R86: =R82+R82/(R24-R84)*(1-((1+R84)/(1+R24))^(P16-1))+R63 -> 187103.6315 | S86: =S82+S82/(S24-S84)*(1-((1+S84)/(1+S24))^(S16-1)) -> 6 | T86: =T82+T82/(T24-T84)*(1-((1+T84)/(1+T24))^(S16-1)) -> 5.369352941 | U86: =U82+U82/(U24-U84)*(1-((1+U84)/(1+U24))^(S16-1))+U63 -> 2828.691276
B87: Total Segment OPEX | D87: =D86*D15 -> 322807.5468 | E87: =E86*D15 -> 321883.8931 | F87: =F86*D15 -> 279799.1238 | G87: =G86*G15 -> 75354.76665 | H87: =H86*G15 -> 75234.79878 | I87: =I86*G15 -> 62394.65509 | J87: =J86*J15 -> 132890.1509 | K87: =K86*J15 -> 132006.6028 | L87: =L86*J15 -> 118258.3442 | M87: =M86*M15 -> 189041.3867 | N87: =N86*M15 -> 193578.4141 | P87: =P86*P15 -> 202139.6208 | Q87: =Q86*P15 -> 219640.9839 | R87: =R86*P15 -> 187103.6315 | S87: =S86*S15 -> 0 | T87: =T86*S15 -> 0 | U87: =U86*S15 -> 0 | V87: =D87+G87+J87+M87+P87+S87 -> 922233.4717 | W87: =E87+H87+K87+N87+Q87+T87 -> 942344.6926 | X87: 647555.7546
B89: Fuel Prices - Diesel
B90: Diesel | D90: $/gallon | E90: =VLOOKUP(H90,B92:E95,4, FALSE) -> 3 | G90: 3 | H90: =VLOOKUP(G90,G91:H94,2) -> Low Estimate
B91: Tax (Rebate) | D91: $/gallon | E91: 0 | G91: 1 | H91: Nominal
B92: Nominal | D92: $/gallon | E92: 3.9 | G92: 2 | H92: High Estimate
B93: High Estimate | D93: $/gallon | E93: 4.4 | G93: 3 | H93: Low Estimate
B94: Low Estimate | D94: $/gallon | E94: 3 | G94: 4 | H94: Custom
B95: Custom | D95: $/gallon
B96: Fuel Prices - Natural Gas | E96: CNG | F96: LNG | I96: CNG | J96: LNG
B97: Natural Gas | D97: $/DGE | E97: =I102 -> 2.467 | F97: =J102 -> 3.05 | G97: 1 | H97: Price at the Pump (Private) | I97: =E100+E$99+E$98 -> 2.137 | J97: =F100+F$99+F$98 -> 2.72
B98: Henry Hub Price | D98: $/DGE | E98: 0.32 | F98: 0.32 | G98: 2 | H98: Price at the Pump (Public) | I98: =E101+E$99+E$98 -> 2.467 | J98: 3.05
B99: Taxes | D99: $/DGE | E99: 0.207 | F99: 0.42 | G99: 3 | H99: Custom | I99: 0.527 | J99: 0.74
B100: Delivery/Overhead/Compression (Private) | D100: $/DGE | E100: 1.61 | F100: 1.98
B101: Delivery/Overhead/Compression (Public) | D101: $/DGE | E101: 1.94 | F101: 2.31
B102: Delivery/Overhead/Compression (Custom) | D102: $/DGE | G102: 2 | I102: =VLOOKUP(G102,G97:I102,3) -> 2.467 | J102: =VLOOKUP(G102,G97:J99,4) -> 3.05
B105: Tank Cost Calculator
A106: 1 | B106: Type 1 | D106: $/DGE | E106: 150
A107: 2 | B107: Type 2 | D107: $/DGE | E107: 200
A108: 3 | B108: Type 3 | D108: $/DGE | E108: 300
A109: 4 | B109: Type 4 | D109: $/DGE | E109: 450
B112: Fuel Penalty
B113: SI | D113: % | E113: -0.15
B114: CI | D114: % | E114: 0
B117: Hybrid Fuel Economy Improvement by Drive Cycle Type
A118: 1 | B118: Urban Drive Cycle | D118: % | E118: 0.2
A119: 2 | B119: Suburban Drive Cycle | D119: % | E119: 0.1
A120: 3 | B120: Rural Drive Cycle | D120: % | E120: 0.05
A121: 4 | B121: Intercity | D121: % | E121: 0.01

Sheet Information and Troubleshooting
A4: If the pull down menus or hyperlinks do not work:
I5: 1. Click on the box labeled "Options…" beside the Security Warning
I6: 2. Scroll down in the box that pops up and click on the radio button beside "Enable this content" for the Active X Controls
I7: 3. In the same pop-up, click on the radio button beside "Enable this content" for the Data Connection
I8: 4.Select OK
I9: The pull down menus will work, but if you open the file in Excel later, you will need to repeat this sequence
